Department Family,Entity,Date,Expenses Type,Expense Area,Supplier,Transaction Number, Total 
Department of Health,The Christie NHS Foundation Trust,18/10/2018,Drugs,Drugs,ALCURA UK LIMITED,596357,"113,522.95"
Department of Health,The Christie NHS Foundation Trust,04/10/2018,PET Scans- Aug 18,Christie Medical Physics,ALLIANCE MEDICAL LTD,593641,"63,755.00"
Department of Health,The Christie NHS Foundation Trust,11/10/2018,PET Scans- Aug 18,Christie Medical Physics,ALLIANCE MEDICAL LTD,593621,"166,225.00"
Department of Health,The Christie NHS Foundation Trust,25/10/2018,PET Scans- Sep 18,Christie Medical Physics,ALLIANCE MEDICAL LTD,595505,"171,130.00"
Department of Health,The Christie NHS Foundation Trust,04/10/2018,Drugs,Christie Medical Physics,ALLIANCE MEDICAL RADIOPHARMACY LIMITED,593642,"38,135.58"
Department of Health,The Christie NHS Foundation Trust,25/10/2018,Drugs,Christie Medical Physics,ALLIANCE MEDICAL RADIOPHARMACY LIMITED,595499,"40,202.04"
Department of Health,The Christie NHS Foundation Trust,25/10/2018,Software Licences,Trust Administration,ALLOCATE SOFTWARE LIMITED,581610,"22,050.00"
Department of Health,The Christie NHS Foundation Trust,18/10/2018,Printing Apr 18-Jun 18,Corporate,APOGEE CORPORATION LTD,586653,"32,128.20"
Department of Health,The Christie NHS Foundation Trust,18/10/2018,Printing Jul 18- Sep 18,Corporate,APOGEE CORPORATION LTD,594530,"32,128.20"
Department of Health,The Christie NHS Foundation Trust,01/10/2018,Drugs,Drugs,BAXTER HEALTHCARE LTD,595160,"336,207.60"
Department of Health,The Christie NHS Foundation Trust,04/10/2018,Drugs,Drugs,BAXTER HEALTHCARE LTD,594163,"37,899.52"
Department of Health,The Christie NHS Foundation Trust,04/10/2018,Drugs,Drugs,BAXTER HEALTHCARE LTD,594165,"-59,568.00"
Department of Health,The Christie NHS Foundation Trust,04/10/2018,Drugs,Drugs,BAXTER HEALTHCARE LTD,594168,"-65,688.00"
Department of Health,The Christie NHS Foundation Trust,04/10/2018,Drugs,Drugs,BAXTER HEALTHCARE LTD,594177,"233,625.60"
Department of Health,The Christie NHS Foundation Trust,18/10/2018,Drugs,Drugs,BAXTER HEALTHCARE LTD,594705,"488,511.97"
Department of Health,The Christie NHS Foundation Trust,18/10/2018,Drugs,Drugs,BAXTER HEALTHCARE LTD,594161,"1,164,790.99"
Department of Health,The Christie NHS Foundation Trust,18/10/2018,Medical Equipment,Network Services,BRAINLAB LTD,595038,"28,051.86"
Department of Health,The Christie NHS Foundation Trust,25/10/2018,Proton Beam Development (PBT),Capital,CITY BUILD MANCHESTER LTD,596612,"73,587.19"
Department of Health,The Christie NHS Foundation Trust,04/10/2018,Drugs,Drugs,EAST CHESHIRE NHS TRUST,593720,"128,009.32"
Department of Health,The Christie NHS Foundation Trust,04/10/2018,Childcare Voucher- Sep 18,Human Resources,FIDELITI LIMITED,594851,"33,218.50"
Department of Health,The Christie NHS Foundation Trust,25/10/2018,Childcare Voucher- Oct 18,Human Resources,FIDELITI LIMITED,597007,"31,840.23"
Department of Health,The Christie NHS Foundation Trust,11/10/2018,Proton Beam Development (PBT),Capital,INTERSERVE CONSTRUCTION LTD,594463,"39,446.82"
Department of Health,The Christie NHS Foundation Trust,18/10/2018,Proton Beam Development (PBT),Capital,INTERSERVE CONSTRUCTION LTD,594849,"88,166.38"
Department of Health,The Christie NHS Foundation Trust,18/10/2018,Proton Beam Development (PBT),Capital,INTERSERVE CONSTRUCTION LTD,594848,"384,909.34"
Department of Health,The Christie NHS Foundation Trust,25/10/2018,Proton Beam Development (PBT),Capital,INTERSERVE CONSTRUCTION LTD,596703,"741,599.61"
Department of Health,The Christie NHS Foundation Trust,25/10/2018,Chemotherapy Prescribing System Oct 18-Dec 18,Finance & Business Development,IQ HEALTH TECH LTD,595115,"32,500.00"
Department of Health,The Christie NHS Foundation Trust,18/10/2018,Drugs,Drugs,LLOYDSPHARMACY CLINICAL HOMECARE,596797,"45,509.88"
Department of Health,The Christie NHS Foundation Trust,08/10/2018,Rates 18/19,Estates & Facilities,M/CR CITY COUNCIL (RATES) DD,596158,"75,318.00"
Department of Health,The Christie NHS Foundation Trust,11/10/2018,Clinical Nurse Recharge Jul 18-Sep 18,Clinical Support & Specialist Surgery,MANCHESTER UNIVERSITY NHS FT,595149,"28,211.69"
Department of Health,The Christie NHS Foundation Trust,18/10/2018,PET Scans Jun 18,Christie Medical Physics,MANCHESTER UNIVERSITY NHS FT,596047,"92,686.00"
Department of Health,The Christie NHS Foundation Trust,15/10/2018,Blood Products,Network Services,NHS BLOOD AND TRANSPLANT,596690,"182,293.80"
Department of Health,The Christie NHS Foundation Trust,16/10/2018,NHS Litigation (NHSLA),FInance & Business Development,NHS LITIGATION AUTHORITY,596883,"93,092.10"
Department of Health,The Christie NHS Foundation Trust,04/10/2018,Stock for all Wards & Departments,All Wards and Departments,NHS SUPPLY CHAIN,593677,"33,820.66"
Department of Health,The Christie NHS Foundation Trust,11/10/2018,Stock for all Wards & Departments,All Wards and Departments,NHS SUPPLY CHAIN,593940,"36,079.82"
Department of Health,The Christie NHS Foundation Trust,18/10/2018,Stock for all Wards & Departments,All Wards and Departments,NHS SUPPLY CHAIN,594296,"40,573.45"
Department of Health,The Christie NHS Foundation Trust,25/10/2018,Stock for all Wards & Departments,All Wards and Departments,NHS SUPPLY CHAIN,595208,"36,172.55"
Department of Health,The Christie NHS Foundation Trust,18/10/2018,Paterson Redevelopment,Capital,NORCROSS CONSTRUCTION LTD,595292,"41,523.03"
Department of Health,The Christie NHS Foundation Trust,18/10/2018,Software Licenses,Finance & Business Development,SOFTCAT PLC,589560,"156,500.03"
Department of Health,The Christie NHS Foundation Trust,25/10/2018,Medway System Support- Sep 18,Finance & Business Development,SYSTEM C HEALTHCARE,595495,"24,485.11"
Department of Health,The Christie NHS Foundation Trust,11/10/2018,Software Licenses,Estates & Facilities,TELETRACKING TECHNOLOGIES,594716,"45,229.17"
Department of Health,The Christie NHS Foundation Trust,18/10/2018,Energy Contract- Sep 18,Estates & Facilities,VEOLIA ENERGY &UTILITY SERVICES UK PLC,594443,"238,631.95"
